[Event "*** Titled Tuesday Blitz"]
[Site "Chess.com"]
[Date "2020.04.21"]
[Round "9"]
[White "TigrVShlyape"]
[Black "BursaBBSatranc"]
[Result "1-0"]
[WhiteElo "2855"]
[BlackElo "2543"]
[TimeControl "180+1"]
[EndTime "11:49:33 PDT"]
[Termination "TigrVShlyape won on time"]

1. g3 {[%clk 0:03:00.9]} 1... d5 {[%clk 0:03:00]} 2. Bg2 {[%clk 0:02:58.9]} 2...
c6 {[%clk 0:03:00.4]} 3. f4 {[%clk 0:02:59.1]} 3... Nf6 {[%clk 0:03:00.2]} 4.
Nf3 {[%clk 0:02:59.3]} 4... Bg4 {[%clk 0:02:55.6]} 5. d3 {[%clk 0:02:55.5]} 5...
Nbd7 {[%clk 0:02:55.4]} 6. Nc3 {[%clk 0:02:54.4]} 6... Qc7 {[%clk 0:02:30.3]} 7.
e4 {[%clk 0:02:53.9]} 7... dxe4 {[%clk 0:02:29.6]} 8. dxe4 {[%clk 0:02:52.7]}
8... e5 {[%clk 0:02:29.2]} 9. h3 {[%clk 0:02:51.8]} 9... Bxf3 {[%clk 0:02:28.9]}
10. Qxf3 {[%clk 0:02:51.1]} 10... Bc5 {[%clk 0:02:27.3]} 11. Bd2 {[%clk
0:02:36.8]} 11... h5 {[%clk 0:02:15.3]} 12. O-O-O {[%clk 0:02:30.9]} 12... O-O-O
{[%clk 0:02:15.2]} 13. f5 {[%clk 0:02:26.9]} 13... Nb6 {[%clk 0:02:05.3]} 14. b3
{[%clk 0:02:19]} 14... Ba3+ {[%clk 0:01:56.8]} 15. Kb1 {[%clk 0:02:18.5]} 15...
Nc4 {[%clk 0:01:45]} 16. Bg5 {[%clk 0:02:12.8]} 16... Qa5 {[%clk 0:01:26.2]} 17.
Rd3 {[%clk 0:01:36.7]} 17... Bb4 {[%clk 0:01:18.8]} 18. Na4 {[%clk 0:01:15.3]}
18... Na3+ {[%clk 0:01:09.5]} 19. Kc1 {[%clk 0:01:06.1]} 19... b5 {[%clk
0:01:02.4]} 20. Nb2 {[%clk 0:01:03.1]} 20... Qb6 {[%clk 0:00:32.7]} 21. Rhd1
{[%clk 0:00:57.6]} 21... Rxd3 {[%clk 0:00:31]} 22. Nxd3 {[%clk 0:00:53.2]} 22...
Bc3 {[%clk 0:00:22.8]} 23. Be3 {[%clk 0:00:52.1]} 23... Bd4 {[%clk 0:00:20.5]}
24. Bd2 {[%clk 0:00:47.6]} 24... Rd8 {[%clk 0:00:19.6]} 25. c3 {[%clk
0:00:44.8]} 25... Bc5 {[%clk 0:00:12.4]} 26. Nxc5 {[%clk 0:00:40]} 26... Qxc5
{[%clk 0:00:13.3]} 27. Qe3 {[%clk 0:00:38.2]} 27... Qe7 {[%clk 0:00:10.1]} 28.
Bf3 {[%clk 0:00:34.1]} 28... Kb7 {[%clk 0:00:06.1]} 29. Kb2 {[%clk 0:00:32.7]}
29... a5 {[%clk 0:00:05.1]} 30. Be1 {[%clk 0:00:28.6]} 30... Rxd1 {[%clk
0:00:03.5]} 31. Bxd1 {[%clk 0:00:28.1]} 31... b4 {[%clk 0:00:03]} 32. c4 {[%clk
0:00:26.4]} 32... Nd7 {[%clk 0:00:03]} 33. Bf2 {[%clk 0:00:25.6]} 1-0

[Event "*** Titled Tuesday Blitz"]
[Site "Chess.com"]
[Date "2020.04.21"]
[Round "9"]
[White "vanea_03"]
[Black "krasavetc"]
[Result "1-0"]
[WhiteElo "2660"]
[BlackElo "2489"]
[TimeControl "180+1"]
[EndTime "11:49:35 PDT"]
[Termination "vanea_03 won by resignation"]

1. d4 {[%clk 0:03:00.9]} 1... Nf6 {[%clk 0:02:58.5]} 2. c4 {[%clk 0:03:01.3]}
2... e6 {[%clk 0:02:59.4]} 3. g3 {[%clk 0:03:01.4]} 3... c5 {[%clk 0:03:00.1]}
4. Nf3 {[%clk 0:03:01.6]} 4... Be7 {[%clk 0:02:51.6]} 5. Bg2 {[%clk 0:03:01.3]}
5... O-O {[%clk 0:02:51.8]} 6. O-O {[%clk 0:02:56]} 6... cxd4 {[%clk 0:02:35.8]}
7. Nxd4 {[%clk 0:02:56.9]} 7... a6 {[%clk 0:02:35.5]} 8. Nc3 {[%clk 0:02:52.1]}
8... Nc6 {[%clk 0:02:35.6]} 9. b3 {[%clk 0:02:47.6]} 9... Rb8 {[%clk 0:02:26.2]}
10. Nxc6 {[%clk 0:02:39.7]} 10... bxc6 {[%clk 0:02:25]} 11. Bf4 {[%clk
0:02:40.2]} 11... Ra8 {[%clk 0:02:21.9]} 12. e4 {[%clk 0:02:32.4]} 12... d6
{[%clk 0:01:58.3]} 13. e5 {[%clk 0:02:31.4]} 13... dxe5 {[%clk 0:01:56.2]} 14.
Bxe5 {[%clk 0:02:30.7]} 14... Bb7 {[%clk 0:01:54.1]} 15. Na4 {[%clk 0:02:22.7]}
15... Qa5 {[%clk 0:01:50.9]} 16. Qe1 {[%clk 0:01:57.1]} 16... Qxe1 {[%clk
0:01:31.5]} 17. Rfxe1 {[%clk 0:01:56.6]} 17... Rad8 {[%clk 0:01:31.9]} 18. Red1
{[%clk 0:01:52.1]} 18... Ba8 {[%clk 0:01:30.1]} 19. Nb6 {[%clk 0:01:44.1]} 19...
Bb7 {[%clk 0:01:26.8]} 20. Bc7 {[%clk 0:01:44.1]} 20... Rxd1+ {[%clk 0:01:25.5]}
21. Rxd1 {[%clk 0:01:45]} 21... Bc5 {[%clk 0:01:20.5]} 22. Na4 {[%clk
0:01:41.5]} 22... Bb4 {[%clk 0:01:17.4]} 23. Be5 {[%clk 0:01:28.2]} 23... Rc8
{[%clk 0:00:57.2]} 24. Nb6 {[%clk 0:01:15.3]} 24... Re8 {[%clk 0:00:55.8]} 25.
Bxf6 {[%clk 0:01:14.6]} 25... gxf6 {[%clk 0:00:54.8]} 26. Rd7 {[%clk 0:01:15.1]}
26... Rb8 {[%clk 0:00:50.4]} 27. Na4 {[%clk 0:00:58.5]} 27... Kf8 {[%clk
0:00:49.6]} 28. c5 {[%clk 0:00:54.8]} 28... Ba5 {[%clk 0:00:38.1]} 29. Bf3
{[%clk 0:00:53.6]} 29... Ke8 {[%clk 0:00:36.8]} 30. Rxb7 {[%clk 0:00:50.5]}
30... Rxb7 {[%clk 0:00:35.6]} 31. Bxc6+ {[%clk 0:00:49.3]} 31... Rd7 {[%clk
0:00:36.1]} 32. b4 {[%clk 0:00:27.1]} 32... Bd8 {[%clk 0:00:29]} 33. Nb6 {[%clk
0:00:22.4]} 33... Bxb6 {[%clk 0:00:25.3]} 34. cxb6 {[%clk 0:00:23.3]} 34... Kd8
{[%clk 0:00:25.3]} 35. Bxd7 {[%clk 0:00:24]} 35... Kxd7 {[%clk 0:00:26.2]} 36.
a4 {[%clk 0:00:24.6]} 36... Kc6 {[%clk 0:00:20.9]} 37. a5 {[%clk 0:00:24.6]} 1-0

[Event "*** Titled Tuesday Blitz"]
[Site "Chess.com"]
[Date "2020.04.21"]
[Round "9"]
[White "Grischuk"]
[Black "Anton_Demchenko"]
[Result "1-0"]
[WhiteElo "3099"]
[BlackElo "2861"]
[TimeControl "180+1"]
[EndTime "11:49:39 PDT"]
[Termination "Grischuk won by checkmate"]

1. Nf3 {[%clk 0:03:00.9]} 1... Nf6 {[%clk 0:02:59.4]} 2. g3 {[%clk 0:03:01.4]}
2... g6 {[%clk 0:02:59.4]} 3. c4 {[%clk 0:03:02]} 3... Bg7 {[%clk 0:03:00]} 4.
Nc3 {[%clk 0:03:02.7]} 4... O-O {[%clk 0:03:00.9]} 5. Bg2 {[%clk 0:03:03.2]}
5... d6 {[%clk 0:03:01.4]} 6. d4 {[%clk 0:03:03.3]} 6... Nbd7 {[%clk 0:03:01.5]}
7. O-O {[%clk 0:03:03]} 7... e5 {[%clk 0:03:02]} 8. e4 {[%clk 0:03:02.4]} 8...
Re8 {[%clk 0:03:02.4]} 9. h3 {[%clk 0:02:56.1]} 9... exd4 {[%clk 0:03:01.2]} 10.
Nxd4 {[%clk 0:02:57]} 10... Nc5 {[%clk 0:03:01.9]} 11. Re1 {[%clk 0:02:57.6]}
11... Bd7 {[%clk 0:03:02.3]} 12. Rb1 {[%clk 0:02:57.2]} 12... a5 {[%clk
0:02:59.2]} 13. b3 {[%clk 0:02:57.1]} 13... h6 {[%clk 0:02:58.9]} 14. a3 {[%clk
0:02:46.3]} 14... Nh7 {[%clk 0:02:33]} 15. b4 {[%clk 0:02:20.4]} 15... axb4
{[%clk 0:02:29.6]} 16. axb4 {[%clk 0:02:21.3]} 16... Na4 {[%clk 0:02:18.4]} 17.
Nxa4 {[%clk 0:02:19.8]} 17... Rxa4 {[%clk 0:02:18.6]} 18. Be3 {[%clk 0:02:04.7]}
18... Ng5 {[%clk 0:02:17]} 19. Qc2 {[%clk 0:01:52.7]} 19... Qa8 {[%clk
0:01:57.3]} 20. Nb5 {[%clk 0:01:45.1]} 20... Rc8 {[%clk 0:01:08]} 21. h4 {[%clk
0:01:21.1]} 21... Nh7 {[%clk 0:00:57.7]} 22. Nc3 {[%clk 0:01:20.6]} 22... Ra3
{[%clk 0:00:55.9]} 23. Nd5 {[%clk 0:01:20.7]} 23... Kh8 {[%clk 0:00:41.1]} 24.
c5 {[%clk 0:01:17.9]} 24... Ra2 {[%clk 0:00:32.2]} 25. Qc1 {[%clk 0:01:17]}
25... dxc5 {[%clk 0:00:29.9]} 26. bxc5 {[%clk 0:01:16.9]} 26... h5 {[%clk
0:00:29.4]} 27. Rd1 {[%clk 0:01:08]} 27... Bc6 {[%clk 0:00:28.2]} 28. Nb4 {[%clk
0:01:01.5]} 28... Ra4 {[%clk 0:00:25.9]} 29. Nxc6 {[%clk 0:01:01.1]} 29... bxc6
{[%clk 0:00:26.8]} 30. Rd7 {[%clk 0:01:00.6]} 30... Kg8 {[%clk 0:00:27.4]} 31.
Bf4 {[%clk 0:00:53]} 31... Bd4 {[%clk 0:00:26]} 32. Bxc7 {[%clk 0:00:38.6]}
32... Nf8 {[%clk 0:00:20.1]} 33. Rxd4 {[%clk 0:00:36.2]} 33... Rxd4 {[%clk
0:00:19.8]} 34. Be5 {[%clk 0:00:36.1]} 34... Rd7 {[%clk 0:00:09.8]} 35. Bh3
{[%clk 0:00:27.3]} 35... Ne6 {[%clk 0:00:05.7]} 36. Qh6 {[%clk 0:00:24.3]} 36...
Qa2 {[%clk 0:00:05.4]} 37. Qh8# {[%clk 0:00:23.8]} 1-0

[Event "*** Titled Tuesday Blitz"]
[Site "Chess.com"]
[Date "2020.04.21"]
[Round "9"]
[White "Jbd735"]
[Black "talaicito"]
[Result "1-0"]
[WhiteElo "2441"]
[BlackElo "2290"]
[TimeControl "180+1"]
[EndTime "11:49:39 PDT"]
[Termination "Jbd735 won by checkmate"]

1. e4 {[%clk 0:03:00.9]} 1... e6 {[%clk 0:02:59.4]} 2. d4 {[%clk 0:03:00.4]}
2... d5 {[%clk 0:02:59.2]} 3. Nd2 {[%clk 0:03:00.5]} 3... Nf6 {[%clk 0:02:58.6]}
4. e5 {[%clk 0:03:00.2]} 4... Nfd7 {[%clk 0:02:59.2]} 5. Bd3 {[%clk 0:03:00.6]}
5... c5 {[%clk 0:03:00.1]} 6. c3 {[%clk 0:03:01]} 6... Nc6 {[%clk 0:03:00.6]} 7.
Ne2 {[%clk 0:03:01.5]} 7... cxd4 {[%clk 0:03:00.5]} 8. cxd4 {[%clk 0:03:01.5]}
8... f6 {[%clk 0:03:01.4]} 9. exf6 {[%clk 0:03:01.1]} 9... Nxf6 {[%clk
0:03:02.3]} 10. Nf3 {[%clk 0:02:58.5]} 10... Qc7 {[%clk 0:03:00.8]} 11. Bf4
{[%clk 0:02:44.7]} 11... Bb4+ {[%clk 0:03:00.6]} 12. Nd2 {[%clk 0:02:33.7]}
12... Bd6 {[%clk 0:02:40.4]} 13. Bxd6 {[%clk 0:02:32.5]} 13... Qxd6 {[%clk
0:02:40.9]} 14. O-O {[%clk 0:02:23.8]} 14... O-O {[%clk 0:02:40.7]} 15. Nf3
{[%clk 0:02:23.9]} 15... e5 {[%clk 0:02:38.6]} 16. dxe5 {[%clk 0:02:22.6]} 16...
Nxe5 {[%clk 0:02:38.7]} 17. Nxe5 {[%clk 0:02:22.7]} 17... Qxe5 {[%clk
0:02:39.6]} 18. h3 {[%clk 0:02:03.8]} 18... Qxb2 {[%clk 0:02:32.3]} 19. Nd4
{[%clk 0:02:01.3]} 19... Kh8 {[%clk 0:02:26.6]} 20. Bc2 {[%clk 0:01:52.9]} 20...
a6 {[%clk 0:02:22.9]} 21. Qd3 {[%clk 0:01:43.3]} 21... Qb6 {[%clk 0:02:03.1]}
22. Rab1 {[%clk 0:01:30.9]} 22... Qd6 {[%clk 0:01:56.4]} 23. Rfe1 {[%clk
0:01:28]} 23... b5 {[%clk 0:01:53.9]} 24. a4 {[%clk 0:01:07.5]} 24... b4 {[%clk
0:01:37.6]} 25. a5 {[%clk 0:01:07.4]} 25... Bd7 {[%clk 0:01:33.1]} 26. Re3
{[%clk 0:00:56.7]} 26... Rae8 {[%clk 0:01:28.9]} 27. Rbe1 {[%clk 0:00:54.5]}
27... Rxe3 {[%clk 0:01:24.3]} 28. Rxe3 {[%clk 0:00:54.3]} 28... Re8 {[%clk
0:01:23.2]} 29. Rxe8+ {[%clk 0:00:51.8]} 29... Bxe8 {[%clk 0:01:24.1]} 30. Nf5
{[%clk 0:00:45.8]} 30... Qe6 {[%clk 0:01:11.3]} 31. Qg3 {[%clk 0:00:35.7]} 31...
g6 {[%clk 0:01:03]} 32. Nd4 {[%clk 0:00:32.9]} 32... Qe1+ {[%clk 0:01:02]} 33.
Kh2 {[%clk 0:00:32.9]} 33... Bd7 {[%clk 0:00:49.5]} 34. Qd6 {[%clk 0:00:28.7]}
34... Kg7 {[%clk 0:00:46.2]} 35. Nf3 {[%clk 0:00:17.3]} 35... Qe2 {[%clk
0:00:41.6]} 36. Ne5 {[%clk 0:00:14.6]} 36... Bb5 {[%clk 0:00:17.4]} 37. Qe7+
{[%clk 0:00:12.6]} 37... Kh6 {[%clk 0:00:14.6]} 38. Qxf6 {[%clk 0:00:11.9]}
38... Qxc2 {[%clk 0:00:12.8]} 39. Nf7+ {[%clk 0:00:11.4]} 39... Kh5 {[%clk
0:00:12.7]} 40. Qg5# {[%clk 0:00:11.3]} 1-0

[Event "*** Titled Tuesday Blitz"]
[Site "Chess.com"]
[Date "2020.04.21"]
[Round "9"]
[White "korkmaz16"]
[Black "LifeIsAllAboutChess23"]
[Result "1-0"]
[WhiteElo "2293"]
[BlackElo "2034"]
[TimeControl "180+1"]
[EndTime "11:49:43 PDT"]
[Termination "korkmaz16 won by checkmate"]

1. e4 {[%clk 0:03:00.9]} 1... b6 {[%clk 0:02:58.6]} 2. d4 {[%clk 0:02:59.5]}
2... Bb7 {[%clk 0:02:58.5]} 3. Bd3 {[%clk 0:02:57.2]} 3... e6 {[%clk 0:02:57.9]}
4. Ne2 {[%clk 0:02:56.5]} 4... Nf6 {[%clk 0:02:56.6]} 5. f3 {[%clk 0:02:55.7]}
5... Be7 {[%clk 0:02:55.4]} 6. O-O {[%clk 0:02:55]} 6... c5 {[%clk 0:02:53.8]}
7. c3 {[%clk 0:02:53.2]} 7... Ba6 {[%clk 0:02:52.2]} 8. Bxa6 {[%clk 0:02:44.9]}
8... Nxa6 {[%clk 0:02:53.1]} 9. d5 {[%clk 0:02:45.4]} 9... d6 {[%clk 0:02:46.3]}
10. dxe6 {[%clk 0:02:43.3]} 10... fxe6 {[%clk 0:02:42.6]} 11. Qa4+ {[%clk
0:02:30.9]} 11... Qd7 {[%clk 0:02:34.4]} 12. Qxa6 {[%clk 0:02:30.3]} 12... b5
{[%clk 0:02:32.3]} 13. Rd1 {[%clk 0:02:21.3]} 13... O-O {[%clk 0:02:31.4]} 14.
e5 {[%clk 0:02:18.8]} 14... Nd5 {[%clk 0:02:27.3]} 15. exd6 {[%clk 0:02:18.5]}
15... Bxd6 {[%clk 0:02:21.4]} 16. c4 {[%clk 0:02:16.3]} 16... bxc4 {[%clk
0:02:13.2]} 17. Nbc3 {[%clk 0:02:15.7]} 17... Nb6 {[%clk 0:01:58.4]} 18. Bf4
{[%clk 0:02:10.5]} 18... Rxf4 {[%clk 0:01:36.9]} 19. Nxf4 {[%clk 0:02:10]} 19...
Qc6 {[%clk 0:01:36.2]} 20. Nxe6 {[%clk 0:02:06.4]} 20... Re8 {[%clk 0:01:32.7]}
21. Re1 {[%clk 0:02:01.5]} 21... Qd7 {[%clk 0:01:26.4]} 22. Ng5 {[%clk
0:01:54.2]} 22... Be5 {[%clk 0:01:14.6]} 23. Rad1 {[%clk 0:01:48.7]} 23... Bd4+
{[%clk 0:01:10.6]} 24. Kh1 {[%clk 0:01:47.9]} 24... h6 {[%clk 0:01:08.3]} 25.
Nge4 {[%clk 0:01:46.8]} 25... Re5 {[%clk 0:01:00.5]} 26. Qb5 {[%clk 0:01:45.5]}
26... Qf7 {[%clk 0:00:56.9]} 27. Nd6 {[%clk 0:01:41.9]} 27... Rxe1+ {[%clk
0:00:42.3]} 28. Rxe1 {[%clk 0:01:40.8]} 28... Qf4 {[%clk 0:00:39.5]} 29. Qe8+
{[%clk 0:01:38.8]} 29... Kh7 {[%clk 0:00:39]} 30. Qe4+ {[%clk 0:01:38.7]} 30...
Qxe4 {[%clk 0:00:33.8]} 31. Ndxe4 {[%clk 0:01:39.6]} 31... a5 {[%clk 0:00:32.5]}
32. Nd6 {[%clk 0:01:32.5]} 32... a4 {[%clk 0:00:31.6]} 33. a3 {[%clk 0:01:32]}
33... Kg6 {[%clk 0:00:23.8]} 34. Re6+ {[%clk 0:01:29.3]} 34... Kh7 {[%clk
0:00:22.1]} 35. g3 {[%clk 0:01:29.1]} 35... Nd7 {[%clk 0:00:18.8]} 36. Nxc4
{[%clk 0:01:27.4]} 36... Nf6 {[%clk 0:00:18.2]} 37. Nxa4 {[%clk 0:01:25.4]}
37... Nd5 {[%clk 0:00:18.3]} 38. Kg2 {[%clk 0:01:22.3]} 38... Kg8 {[%clk
0:00:15.6]} 39. Rc6 {[%clk 0:01:19.9]} 39... Kf7 {[%clk 0:00:15.5]} 40. Nxc5
{[%clk 0:01:19.1]} 40... Bxc5 {[%clk 0:00:11.3]} 41. Rxc5 {[%clk 0:01:18.3]}
41... Ke7 {[%clk 0:00:12.2]} 42. Rxd5 {[%clk 0:01:17.7]} 42... Ke6 {[%clk
0:00:13.1]} 43. Rd6+ {[%clk 0:01:17.2]} 43... Ke7 {[%clk 0:00:14]} 44. a4 {[%clk
0:01:16.4]} 44... g5 {[%clk 0:00:14.9]} 45. a5 {[%clk 0:01:16]} 45... Kf7 {[%clk
0:00:14.4]} 46. a6 {[%clk 0:01:16]} 46... Kg7 {[%clk 0:00:14.1]} 47. a7 {[%clk
0:01:15.7]} 47... h5 {[%clk 0:00:15]} 48. a8=Q {[%clk 0:01:15.4]} 48... g4
{[%clk 0:00:15.9]} 49. Qb7+ {[%clk 0:01:11.1]} 49... Kf8 {[%clk 0:00:14.6]} 50.
Rd8# {[%clk 0:01:04.8]} 1-0

[Event "*** Titled Tuesday Blitz"]
[Site "Chess.com"]
[Date "2020.04.21"]
[Round "9"]
[White "DoHoChess"]
[Black "Shota_Azaladze"]
[Result "0-1"]
[WhiteElo "2567"]
[BlackElo "2758"]
[TimeControl "180+1"]
[EndTime "11:49:44 PDT"]
[Termination "Shota_Azaladze won by resignation"]

1. d4 {[%clk 0:03:00.5]} 1... g6 {[%clk 0:02:57.8]} 2. e4 {[%clk 0:02:53.7]}
2... Bg7 {[%clk 0:02:58.3]} 3. c4 {[%clk 0:02:54]} 3... c5 {[%clk 0:02:58]} 4.
Nf3 {[%clk 0:02:53.8]} 4... Nc6 {[%clk 0:02:54.2]} 5. d5 {[%clk 0:02:52.1]} 5...
Nd4 {[%clk 0:02:52.5]} 6. Nc3 {[%clk 0:02:52.4]} 6... d6 {[%clk 0:02:49.8]} 7.
Nxd4 {[%clk 0:02:51.9]} 7... Bxd4 {[%clk 0:02:48.3]} 8. Bd3 {[%clk 0:02:45.5]}
8... Bg7 {[%clk 0:02:42.8]} 9. O-O {[%clk 0:02:45.6]} 9... Nf6 {[%clk
0:02:43.4]} 10. f4 {[%clk 0:02:44.1]} 10... O-O {[%clk 0:02:40.8]} 11. Qf3
{[%clk 0:02:36.3]} 11... e6 {[%clk 0:02:36.3]} 12. dxe6 {[%clk 0:02:25.2]} 12...
fxe6 {[%clk 0:02:34.3]} 13. Be3 {[%clk 0:02:20.7]} 13... Nd7 {[%clk 0:02:33.9]}
14. Qh3 {[%clk 0:02:19]} 14... Nb8 {[%clk 0:02:31.7]} 15. e5 {[%clk 0:02:14.2]}
15... Nc6 {[%clk 0:02:25.5]} 16. Ne4 {[%clk 0:02:12.7]} 16... dxe5 {[%clk
0:02:24]} 17. Ng5 {[%clk 0:02:07.7]} 17... h6 {[%clk 0:02:17.6]} 18. Bxg6 {[%clk
0:02:07.6]} 18... exf4 {[%clk 0:02:14.8]} 19. Nf7 {[%clk 0:01:39.1]} 19... Rxf7
{[%clk 0:01:58.8]} 20. Bxf7+ {[%clk 0:01:39.1]} 20... Kxf7 {[%clk 0:01:58.8]}
21. Rxf4+ {[%clk 0:01:38.7]} 21... Kg8 {[%clk 0:01:58.2]} 22. Rg4 {[%clk
0:01:27]} 22... Ne5 {[%clk 0:01:43.1]} 23. Rxg7+ {[%clk 0:01:22.9]} 23... Kxg7
{[%clk 0:01:44]} 24. Qxh6+ {[%clk 0:01:18.5]} 24... Kg8 {[%clk 0:01:44.1]} 25.
Rf1 {[%clk 0:01:15.8]} 25... Qe7 {[%clk 0:01:41.2]} 26. Qh5 {[%clk 0:01:01]}
26... Qg7 {[%clk 0:01:29.5]} 27. Bh6 {[%clk 0:00:50.7]} 27... Qg4 {[%clk
0:01:17]} 28. Rf8+ {[%clk 0:00:49.1]} 28... Kh7 {[%clk 0:01:15.4]} 29. Qxe5
{[%clk 0:00:46.9]} 29... Qd1+ {[%clk 0:01:07.3]} 30. Kf2 {[%clk 0:00:44.6]}
30... Qd4+ {[%clk 0:01:07.6]} 31. Qxd4 {[%clk 0:00:44]} 31... cxd4 {[%clk
0:01:07.1]} 32. Bf4 {[%clk 0:00:42.3]} 32... Kg7 {[%clk 0:01:06.6]} 33. Rd8
{[%clk 0:00:38.6]} 33... Kf6 {[%clk 0:01:06.6]} 34. h4 {[%clk 0:00:38.7]} 34...
e5 {[%clk 0:01:05]} 35. Bg5+ {[%clk 0:00:35.3]} 35... Kf5 {[%clk 0:01:05.5]} 36.
Rf8+ {[%clk 0:00:33.2]} 36... Kg6 {[%clk 0:01:05.2]} 37. c5 {[%clk 0:00:33.5]}
37... b6 {[%clk 0:01:00.5]} 38. c6 {[%clk 0:00:33.7]} 38... e4 {[%clk
0:00:56.9]} 39. Rd8 {[%clk 0:00:29.8]} 39... e3+ {[%clk 0:00:56.3]} 40. Ke1
{[%clk 0:00:28.3]} 40... Kf5 {[%clk 0:00:51.5]} 41. c7 {[%clk 0:00:20.9]} 41...
Ke4 {[%clk 0:00:49.8]} 42. Bf6 {[%clk 0:00:20.1]} 42... d3 {[%clk 0:00:48.1]}
43. Re8+ {[%clk 0:00:14.2]} 43... Kf5 {[%clk 0:00:46.4]} 44. Bg5 {[%clk
0:00:13.8]} 44... d2+ {[%clk 0:00:45.3]} 45. Kd1 {[%clk 0:00:14]} 45... Kg6
{[%clk 0:00:41.9]} 46. Bxe3 {[%clk 0:00:14.2]} 46... Bg4+ {[%clk 0:00:41.5]} 0-1

[Event "*** Titled Tuesday Blitz"]
[Site "Chess.com"]
[Date "2020.04.21"]
[Round "9"]
[White "Firehand33"]
[Black "want2lose"]
[Result "1-0"]
[WhiteElo "2748"]
[BlackElo "2904"]
[TimeControl "180+1"]
[EndTime "11:49:47 PDT"]
[Termination "Firehand33 won on time"]

1. g3 {[%clk 0:02:59.6]} 1... g6 {[%clk 0:02:59.8]} 2. Bg2 {[%clk 0:03:00.5]}
2... Bg7 {[%clk 0:03:00.2]} 3. c4 {[%clk 0:03:01.2]} 3... Nf6 {[%clk 0:03:00.3]}
4. Nc3 {[%clk 0:03:02.1]} 4... c5 {[%clk 0:03:00.7]} 5. e3 {[%clk 0:03:02.7]}
5... O-O {[%clk 0:03:00.3]} 6. Nge2 {[%clk 0:03:03.3]} 6... Nc6 {[%clk
0:02:56.9]} 7. O-O {[%clk 0:03:03.9]} 7... d6 {[%clk 0:02:52.3]} 8. d3 {[%clk
0:03:04.2]} 8... Rb8 {[%clk 0:02:47.3]} 9. b3 {[%clk 0:03:04.1]} 9... Bd7 {[%clk
0:02:46]} 10. Bb2 {[%clk 0:03:04.6]} 10... a6 {[%clk 0:02:46.3]} 11. Qd2 {[%clk
0:03:05]} 11... b5 {[%clk 0:02:46.4]} 12. Rad1 {[%clk 0:03:05.6]} 12... Qc8
{[%clk 0:02:37.9]} 13. Qc1 {[%clk 0:03:05]} 13... Bh3 {[%clk 0:02:37.4]} 14. Qa1
{[%clk 0:03:02.2]} 14... Bxg2 {[%clk 0:02:37.2]} 15. Kxg2 {[%clk 0:03:02.4]}
15... Qb7 {[%clk 0:02:37.4]} 16. Nd5 {[%clk 0:02:46.2]} 16... Nb4 {[%clk
0:02:22.4]} 17. e4 {[%clk 0:02:43.2]} 17... Nbxd5 {[%clk 0:02:17.6]} 18. exd5
{[%clk 0:02:42.5]} 18... e5 {[%clk 0:02:12.7]} 19. h3 {[%clk 0:02:31.2]} 19...
Qe7 {[%clk 0:01:50.4]} 20. Rde1 {[%clk 0:02:27.9]} 20... Rfe8 {[%clk 0:01:50]}
21. f4 {[%clk 0:02:18.1]} 21... Nd7 {[%clk 0:00:57.7]} 22. Ng1 {[%clk
0:02:17.7]} 22... f5 {[%clk 0:00:56]} 23. Nf3 {[%clk 0:02:16.8]} 23... bxc4
{[%clk 0:00:47.7]} 24. dxc4 {[%clk 0:02:05.5]} 24... e4 {[%clk 0:00:47.6]} 25.
Ng5 {[%clk 0:01:50]} 25... Bxb2 {[%clk 0:00:45.9]} 26. Qxb2 {[%clk 0:01:49.6]}
26... Nf8 {[%clk 0:00:46.8]} 27. h4 {[%clk 0:01:49.3]} 27... h6 {[%clk 0:00:45]}
28. Nh3 {[%clk 0:01:49.3]} 28... Nh7 {[%clk 0:00:44.7]} 29. Nf2 {[%clk
0:01:48.3]} 29... Nf6 {[%clk 0:00:43.8]} 30. Nd1 {[%clk 0:01:46.2]} 30... Ng4
{[%clk 0:00:43.3]} 31. Ne3 {[%clk 0:01:46.2]} 31... Nxe3+ {[%clk 0:00:43.1]} 32.
Rxe3 {[%clk 0:01:47.1]} 32... Qg7 {[%clk 0:00:40.6]} 33. Qxg7+ {[%clk
0:01:41.6]} 33... Kxg7 {[%clk 0:00:41.5]} 34. Kf2 {[%clk 0:01:30.3]} 34... a5
{[%clk 0:00:40.6]} 35. a4 {[%clk 0:01:27.2]} 35... Rb4 {[%clk 0:00:40.1]} 36.
Rc1 {[%clk 0:01:25.5]} 36... Reb8 {[%clk 0:00:38.6]} 37. Rcc3 {[%clk 0:01:25.4]}
37... Kf6 {[%clk 0:00:39]} 38. Kg2 {[%clk 0:01:18.8]} 38... R4b7 {[%clk
0:00:37.6]} 39. Kf2 {[%clk 0:01:18.6]} 39... g5 {[%clk 0:00:36.6]} 40. h5 {[%clk
0:01:11.4]} 40... Rg8 {[%clk 0:00:31.9]} 41. Re1 {[%clk 0:00:52.5]} 41... gxf4
{[%clk 0:00:25]} 42. gxf4 {[%clk 0:00:52.5]} 42... Rg4 {[%clk 0:00:25.7]} 43.
Rg1 {[%clk 0:00:51.5]} 43... Rxf4+ {[%clk 0:00:15.5]} 44. Ke3 {[%clk 0:00:45.6]}
44... Rf3+ {[%clk 0:00:05.8]} 45. Kd2 {[%clk 0:00:45.9]} 45... Rxc3 {[%clk
0:00:06.1]} 46. Rg6+ {[%clk 0:00:45.1]} 46... Ke5 {[%clk 0:00:04.5]} 47. Kxc3
{[%clk 0:00:45.7]} 47... f4 {[%clk 0:00:01.1]} 48. Re6+ {[%clk 0:00:45.1]} 48...
Kf5 {[%clk 0:00:01.2]} 49. Rxd6 {[%clk 0:00:45.6]} 1-0